bitfinex-derivatives/quotes_ETHF0:USTF0_20220103
["timestamp","ask_amount","ask_price","bid_price","bid_amount"]
[1641202731002,0.87381787,3798.6,3798.3,5.2653781]
[1641202731401,0.87381787,3798.6,3798.3,7.2701681]
[1641202731600,2.18533306,3799.7,3798.6,5.26496283]
[1641202731802,0.95812378,3799.5,3799.3,5.2640506]
[1641202732000,2.18533306,3799.7,3799.3,5.2640506]
[1641202732201,2.18533306,3799.7,3799.4,0.122356]
[1641202732402,2.18533306,3799.7,3799.4,0.852656]
[1641202732602,2.18533306,3799.7,3799.4,0.7303]
[1641202732801,2.18533306,3799.7,3799.5,0.122356]
[1641202733001,3.99416358,3800.6,3799.5,0.122356]
[1641202733201,5.74116267,3800.6,3799.5,0.122356]
[1641202733402,2.00479,3800.4,3799.6,2.00479]
[1641202733603,2.132947,3800.4,3799.6,2.00479]
[1641202734502,0.5596769,3800.3,3799.6,2.00479]
[1641202739507,0.5596769,3800.3,3799.6,3.50479]
[1641202739712,0.5596769,3800.3,3800.0,2.85817828]
[1641202739909,0.5596769,3800.3,3800.1,0.122356]
[1641202740711,2.00479,3800.4,3800.1,0.122356]
[1641202741314,2.00479,3800.8,3800.1,1.622356]
[1641202741611,2.00479,3801.2,3800.5,3.89662472]
[1641202741816,2.00479,3801.2,3800.6,1.31469966]
[1641202742512,2.00479,3801.2,3800.7,5.20223825]
[1641202743312,1.16618596,3801.5,3800.7,6.70223825]
[1641202743514,1.16618596,3801.5,3801.4,2.00479]
[1641202743714,1.16518596,3801.5,3801.4,2.69689]
[1641202744015,1.39517696,3801.5,3801.4,2.69689]
[1641202744213,1.16518596,3801.5,3801.4,2.69689]
[1641202744415,0.128157,3801.7,3801.4,2.69689]
[1641202745114,0.229991,3801.6,3801.4,2.69689]
[1641202745312,0.128157,3801.7,3801.4,2.69689]
[1641202745714,0.128157,3801.7,3801.4,0.6921]
[1641202745914,0.229991,3801.6,3800.6,1.3147083]
[1641202746414,1.68772345,3801.6,3800.6,1.3147083]
[1641202746615,1.45773245,3801.6,3800.7,0.122356]
[1641202746814,1.45773245,3801.6,3800.7,0.888756]
[1641202747517,1.45773245,3801.6,3801.1,2.00479]
[1641202748120,1.45773245,3801.5,3801.1,2.00479]
[1641202749822,1.45773245,3801.4,3801.1,2.00479]
[1641202750222,0.229991,3801.3,3801.1,2.00479]
[1641202752624,1.45773245,3801.5,3801.1,2.00479]
[1641202752823,1.45773245,3801.5,3801.1,2.64729]
[1641202753925,1.45773245,3801.4,3801.1,2.64729]
[1641202754127,0.229991,3801.3,3801.1,2.64729]
[1641202755329,1.45773245,3801.4,3801.1,2.64729]
[1641202755529,0.229991,3801.3,3801.1,2.64729]
[1641202755729,1.45773245,3801.4,3801.1,2.64729]
[1641202756031,1.45773245,3801.4,3801.1,0.6425]
[1641202756639,0.229991,3801.3,3801.1,0.6425]
[1641202757633,0.229991,3801.3,3801.1,2.00479]
[1641202758234,0.128157,3801.7,3801.1,2.00479]
[1641202758235,0.229991,3801.2,3801.1,2.00479]
[1641202758435,1.46222704,3801.4,3801.1,2.00479]
[1641202759236,0.229991,3801.3,3801.1,2.00479]
[1641202759638,1.46222704,3801.4,3801.1,2.00479]
[1641202761542,0.229991,3801.3,3801.1,2.00479]
[1641202761740,1.46222704,3801.4,3801.1,2.00479]
[1641202762243,0.55952489,3801.2,3801.1,2.00479]
[1641202762841,0.78951589,3801.2,3801.1,2.00479]
[1641202763445,0.229991,3801.2,3801.1,2.00479]
[1641202764146,0.78951589,3801.2,3801.1,2.00479]
[1641202764647,0.55952489,3801.2,3801.1,2.00479]
[1641202766051,0.78951589,3801.2,3801.1,2.00479]
[1641202766451,0.229991,3801.2,3801.1,2.00479]
[1641202766651,1.75467244,3801.4,3801.1,2.00479]
[1641202766951,0.229991,3801.3,3801.1,2.00479]
[1641202767352,0.55952489,3801.2,3801.1,2.00479]
[1641202769754,1.75467244,3801.3,3801.1,2.54919802]
[1641202769755,1.46703856,3801.3,3801.1,2.54919802]
[1641202770854,1.46703856,3801.3,3801.1,2.00479]
[1641202771057,0.128157,3801.7,3801.1,2.00479]
[1641202771654,2.00479,3801.9,3801.1,2.00479]
[1641202771857,2.00479,3801.9,3801.1,2.127146]
[1641202772255,11.31,3802.4,3801.1,2.127146]
[1641202772455,13.31479,3802.3,3801.1,2.00479]
[1641202773357,2.00479,3802.3,3801.1,2.00479]
[1641202773559,2.00479,3802.3,3801.3,1.5]
[1641202773857,2.00479,3802.3,3801.7,2.00479]
[1641202774059,19.2396,3802.7,3801.7,2.00479]
[1641202774258,19.2396,3802.7,3801.7,2.127146]
[1641202774859,0.86782825,3803.2,3802.2,1.5]
[1641202775061,0.86782825,3803.2,3802.2,2.1152]
[1641202775662,0.86782825,3803.2,3802.5,0.78895306]
[1641202775861,0.86782825,3803.2,3802.6,2.127146]
[1641202776461,0.86782825,3803.2,3802.7,1.5]
[1641202776663,3.16189434,3803.5,3802.7,1.5]
[1641202776961,2.87261825,3803.9,3802.8,4.20726]
[1641202777562,2.87261825,3803.9,3803.0,1.05545337]
[1641202777768,0.128157,3803.8,3803.0,1.73075337]
[1641202778063,2.87261825,3803.9,3803.4,2.00479]
[1641202778663,2.00479,3803.9,3803.4,2.00479]
[1641202781065,13.31479,3803.9,3803.4,2.00479]
[1641202781466,1.5,3803.8,3803.4,2.00479]
[1641202781664,13.31479,3803.9,3803.4,2.00479]
[1641202781868,1.5,3803.8,3803.0,3.31864845]
[1641202782066,1.5,3803.8,3803.0,2.00479]
[1641202782465,13.31479,3803.9,3803.0,2.00479]
[1641202783270,2.00479,3803.9,3803.0,2.00479]
[1641202783870,11.31,3803.8,3803.0,2.00479]
[1641202784271,2.00479,3803.9,3803.0,2.00479]
[1641202784871,11.31,3803.8,3803.0,2.00479]
[1641202785472,2.00479,3803.9,3803.0,2.00479]
[1641202786173,2.00479,3803.9,3803.4,2.00479]
[1641202787273,0.32784895,3803.8,3803.4,2.00479]
[1641202787474,1.75467244,3803.7,3803.4,2.00479]
[1641202788275,1.75467244,3803.7,3803.4,2.88723036]
[1641202788477,1.47028674,3803.5,3803.4,2.88723036]
[1641202789075,1.70027774,3803.5,3803.4,2.88723036]
[1641202789675,11.432356,3803.4,3802.6,1.78517953]
[1641202789876,0.122356,3803.4,3802.6,1.78517953]
[1641202790076,0.5361,3803.5,3802.6,1.78517953]
[1641202790077,2.00479,3802.9,3802.6,1.78517953]
[1641202790276,2.00479,3802.9,3802.4,3.2514895]
[1641202791278,2.00479,3802.9,3802.4,4.56556203]
[1641202792277,0.32784895,3802.8,3802.5,0.55918784]
[1641202793680,1.75467244,3803.5,3802.5,0.55918784]
[1641202793878,1.75467244,3803.4,3802.5,0.55918784]
[1641202794078,1.75467244,3803.4,3802.7,2.00479]
[1641202794278,0.128157,3803.3,3802.7,2.00479]
[1641202794680,1.75467244,3803.4,3802.8,1.31393786]
[1641202795179,2.08252139,3803.7,3802.8,1.31393786]
[1641202795378,2.20487739,3803.7,3802.8,1.31393786]
[1641202795579,1.75467244,3803.7,3802.8,1.31393786]
[1641202795779,11.31,3803.8,3802.8,1.31393786]
[1641202800183,1.5,3803.6,3802.8,1.31393786]
[1641202800385,11.31,3803.8,3802.7,2.00479]
[1641202800386,2.00479,3803.3,3802.7,2.00479]
[1641202800784,2.00479,3803.3,3802.7,3.31876584]
[1641202803688,11.432356,3803.2,3802.7,2.00479]
[1641202804590,11.432356,3803.2,3802.4,1.46630997]
[1641202804790,12.932356,3803.2,3802.4,1.46630997]
[1641202805394,12.932356,3803.2,3801.9,39.46139]
[1641202805595,12.932356,3803.2,3801.9,20.71739]
[1641202805998,11.432356,3803.2,3801.9,2.00479]
[1641202806398,2.00479,3802.4,3801.5,3.39282436]
[1641202806596,0.128157,3802.3,3801.5,3.39282436]
[1641202806997,0.122356,3802.2,3801.5,3.39282436]
[1641202807197,0.122356,3802.2,3801.5,2.00479]
[1641202808402,1.5,3802.1,3801.5,2.00479]
[1641202811008,1.5,3802.1,3801.1,2.00479]
[1641202811407,0.122356,3802.2,3801.1,2.00479]
[1641202812406,2.00479,3801.7,3801.1,2.00479]
[1641202812608,13.31479,3801.7,3801.1,2.00479]
[1641202813007,2.00479,3801.7,3801.1,2.00479]
[1641202814310,11.31,3801.6,3801.1,2.00479]
[1641202814510,0.128157,3801.5,3801.1,2.00479]
[1641202815010,2.00479,3801.7,3801.1,2.00479]
[1641202816614,0.128157,3801.6,3801.1,2.00479]
[1641202816812,2.00479,3801.7,3801.1,2.00479]
[1641202819314,11.31,3801.6,3801.1,2.00479]
[1641202819512,12.032,3801.6,3801.1,2.00479]
[1641202832825,0.722,3801.6,3801.1,2.00479]
[1641202833027,11.31,3801.6,3801.1,2.00479]
[1641202834227,2.00479,3801.7,3801.1,2.00479]
[1641202835231,2.00479,3801.7,3801.3,1.5]
[1641202835830,11.31,3802.3,3801.4,0.122356]
[1641202836431,0.128157,3802.2,3801.3,1.5]
[1641202838934,0.128157,3802.2,3801.2,3.06238641]
[1641202839133,0.128157,3802.2,3801.2,2.20133041]
[1641202840337,0.128157,3802.2,3801.6,0.88682431]
[1641202843038,0.128157,3802.2,3801.5,0.88682431]
[1641202844842,0.128157,3802.2,3801.3,0.88682431]
[1641202845042,13.31479,3801.7,3801.3,0.88682431]
[1641202845243,14.05649,3801.7,3801.3,0.88682431]
[1641202846142,14.05649,3801.7,3801.1,2.00479]
[1641202846143,2.74649,3801.7,3801.1,2.89161431]
[1641202846343,2.00479,3801.7,3801.1,2.89161431]
[1641202846541,11.438157,3802.2,3801.1,2.89161431]
[1641202846749,0.87374101,3802.1,3801.6,1.31436097]
[1641202847750,0.87374101,3802.1,3801.2,1.31451301]
[1641202848150,11.438157,3802.2,3801.4,0.88682431]
[1641202849951,11.438157,3802.2,3801.3,0.55930767]
[1641202849952,11.438157,3802.2,3801.5,0.88682431]
[1641202850253,0.128157,3802.2,3801.5,0.88682431]
[1641202851153,0.128157,3802.2,3801.4,0.88682431]
[1641202852758,0.128157,3802.2,3801.3,1.44613198]
[1641202854556,2.87853101,3802.6,3802.1,1.31417615]
[1641202854757,2.87853101,3802.6,3802.2,0.122356]
[1641202854956,2.87853101,3802.6,3802.1,2.14337615]
[1641202855159,0.87374101,3802.6,3802.1,4.14816615]
[1641202855858,0.87374101,3802.6,3802.5,0.88682431]
[1641202856659,1.10373201,3802.6,3802.5,0.88682431]
[1641202856859,1.10373201,3802.6,3802.3,0.55930767]
[1641202857062,0.128157,3802.7,3802.5,1.18231103]
[1641202859162,0.128157,3802.7,3802.4,1.18231103]
[1641202859362,0.87374101,3802.8,3802.4,1.18231103]
[1641202859562,0.128157,3802.6,3802.4,1.18231103]
[1641202859763,0.229991,3802.5,3802.4,1.18231103]
[1641202860363,0.720057,3802.6,3802.4,1.18231103]
[1641202860566,0.128157,3802.6,3802.4,1.18231103]
[1641202860965,0.128157,3802.6,3802.3,1.7416187]
[1641202861169,0.87374101,3802.7,3802.3,1.7416187]
[1641202861866,0.128157,3802.6,3802.3,1.7416187]
[1641202862066,0.128157,3802.6,3802.3,1.4508437]
[1641202862668,0.680957,3802.6,3802.3,1.4508437]
[1641202862867,0.680957,3802.6,3802.4,0.89153603]
[1641202863076,0.229991,3802.5,3802.4,0.89153603]
[1641202863869,0.229991,3802.5,3802.2,0.89153603]
[1641202864470,0.229991,3802.5,3802.2,1.45077963]
[1641202867473,0.229991,3802.5,3802.1,2.89632603]
[1641202868375,0.229991,3802.5,3802.2,1.4507729]
[1641202871282,0.229991,3802.5,3802.1,2.89632603]
[1641202872682,0.229991,3802.5,3802.2,1.45078057]
[1641202873586,0.229991,3802.5,3802.1,2.89632603]
[1641202878288,0.229991,3802.5,3802.1,0.89153603]
[1641202880092,0.128157,3802.6,3802.1,0.89153603]
[1641202880699,0.128157,3802.6,3802.1,1.71583603]
[1641202881001,1.00189801,3802.6,3802.2,0.89153603]
[1641202882101,0.128157,3802.6,3802.4,0.89153603]
[1641202883802,0.229991,3802.5,3802.4,0.89153603]
[1641202884002,0.128157,3802.6,3802.4,0.89153603]
[1641202884205,2.87853101,3802.8,3802.4,0.89153603]
[1641202885407,2.87853101,3802.8,3802.5,0.89153603]
[1641202885807,0.87374101,3802.8,3802.5,2.89632603]
[1641202886008,35.9306,3803.2,3802.7,0.89153603]
[1641202886208,18.0592,3803.2,3802.7,1.58073603]
[1641202886410,1.16588498,3803.4,3802.7,1.58073603]
[1641202886808,1.16588498,3803.4,3802.7,0.6892]
[1641202887013,1.16588498,3803.4,3802.7,1.24844809]
[1641202887209,1.16588498,3803.4,3802.7,2.43075912]
[1641202887210,0.128157,3803.4,3802.7,2.43075912]
[1641202887808,0.128157,3803.4,3803.1,2.00479]
[1641202888710,3.17067498,3803.7,3803.1,2.00479]
[1641202889408,3.29883198,3803.7,3803.1,2.00479]
[1641202890213,2.132947,3803.7,3803.2,0.55902627]
[1641202891212,13.442947,3803.7,3803.2,1.7413373]
[1641202891413,2.132947,3803.7,3803.2,1.7413373]
[1641202891813,13.442947,3803.7,3803.2,1.7413373]
[1641202892015,2.132947,3803.7,3803.2,1.7413373]
[1641202892414,1.16588498,3804.1,3803.2,1.18231103]
[1641202892715,13.31479,3804.3,3803.2,0.7939]
[1641202893916,13.31479,3804.3,3803.5,2.00479]
[1641202894116,0.128157,3804.2,3803.5,2.00479]
[1641202895217,2.00479,3804.3,3803.5,2.00479]
[1641202895420,2.00479,3804.3,3803.6,0.122356]
[1641202895819,2.00479,3804.3,3803.5,2.00479]
[1641202896319,0.128157,3804.2,3803.5,2.00479]
[1641202897822,0.924457,3804.2,3803.5,2.00479]
[1641202900323,0.35009013,3804.1,3803.5,2.00479]
[1641202900924,1.5,3804.0,3803.5,2.00479]
[1641202901124,0.35009013,3804.1,3803.5,2.00479]
[1641202902225,1.5,3804.0,3803.5,2.00479]
[1641202903223,11.31,3804.1,3803.5,2.00479]
[1641202905125,0.128157,3804.2,3803.5,2.00479]
[1641202906428,1.00976366,3804.2,3803.5,2.00479]
[1641202907533,1.00976366,3804.2,3803.5,2.8957643]
[1641202907534,0.128157,3804.2,3803.5,2.8957643]
[1641202908631,0.88160666,3804.3,3803.5,3.7065643]
[1641202909529,0.88160666,3804.3,3803.5,2.81559]
[1641202910133,0.88160666,3804.5,3803.6,1.44993432]
[1641202910331,0.88160666,3804.5,3804.2,2.00479]
[1641202910531,0.229991,3804.4,3804.2,2.00479]
[1641202910931,0.88160666,3804.5,3804.2,2.00479]
[1641202911530,12.19160666,3804.6,3804.2,2.00479]
[1641202912732,0.128157,3804.5,3804.2,2.00479]
[1641202912932,0.229991,3804.4,3804.2,2.00479]
[1641202914534,1.11159766,3804.4,3804.2,2.00479]
[1641202914735,0.88160666,3804.4,3804.2,2.00479]
[1641202915136,1.11159766,3804.4,3804.2,2.00479]
[1641202915335,0.88160666,3804.4,3804.2,2.00479]
[1641202915937,1.00976366,3804.5,3804.2,2.00479]
[1641202916135,11.539991,3804.4,3803.6,0.8909743]
[1641202916334,13.544781,3804.4,3803.6,0.8909743]
[1641202916535,13.544781,3804.4,3803.5,2.8957643]
[1641202917536,14.42638766,3804.4,3803.5,2.00479]
[1641202918437,12.42159766,3804.4,3803.5,2.00479]
[1641202920236,11.539991,3804.4,3803.5,2.00479]
[1641202920437,13.544781,3804.4,3803.5,2.00479]
[1641202924439,1.5,3804.3,3803.5,2.00479]
[1641202924640,0.122356,3804.2,3803.5,2.00479]
[1641202924839,0.122356,3804.2,3803.2,2.00479]
[1641202924840,1.5,3803.9,3803.0,0.8909743]
[1641202925841,1.5,3803.7,3803.0,0.8909743]
[1641202926039,1.5,3803.5,3803.0,0.8909743]
[1641202926240,1.622356,3803.5,3802.9,0.8909743]
[1641202926441,2.00479,3803.0,3802.9,0.8909743]
[1641202926639,2.995681,3803.0,3802.9,0.8909743]
[1641202927340,2.995681,3803.0,3802.6,2.07328533]
[1641202927541,2.995681,3803.0,3802.6,0.8909743]
[1641202928265,0.128157,3802.9,3802.5,0.55904736]
[1641202928444,0.128157,3802.9,3802.8,1.18231103]
[1641202929946,0.128157,3802.9,3802.7,1.47768018]
[1641202930848,0.229991,3802.8,3802.7,1.47768018]
[1641202931248,0.88160666,3803.5,3802.7,1.47768018]
[1641202931448,1.00976366,3803.5,3802.7,1.47768018]
[1641202932347,1.00976366,3803.5,3802.8,0.78888799]
[1641202932548,1.00976366,3803.5,3802.9,2.00479]
[1641202932749,0.88160666,3803.6,3803.3,0.89239317]
[1641202932949,0.229991,3803.5,3803.3,0.89239317]
[1641202933350,0.88160666,3803.6,3803.3,0.89239317]
[1641202933551,1.16588498,3803.9,3803.3,0.89239317]
[1641202933752,0.128157,3803.8,3802.9,2.00479]
[1641202934554,1.01165613,3803.8,3803.5,0.89237754]
[1641202934754,0.229991,3803.7,3803.5,1.66197754]
[1641202936158,1.11349013,3803.7,3803.5,0.7696]
[1641202936358,1.11349013,3803.7,3803.4,0.89237754]
[1641202937159,0.88349913,3803.6,3803.4,0.89237754]
[1641202937357,0.229991,3803.5,3803.4,0.89237754]
[1641202938761,0.229991,3803.5,3803.3,0.89237754]
[1641202940563,4.00958,3803.4,3803.3,0.89237754]
[1641202941165,4.239571,3803.4,3803.3,0.89237754]
[1641202941567,4.00958,3803.4,3803.2,0.89237754]
[1641202942365,0.229991,3803.3,3803.2,0.89237754]
[1641202942563,4.00958,3803.4,3803.2,0.89237754]
[1641202945466,4.239571,3803.4,3803.2,0.89237754]
[1641202945868,4.00958,3803.4,3803.2,0.89237754]
[1641202946970,11.539991,3803.3,3803.2,0.89237754]
[1641202947169,11.539991,3803.3,3803.1,0.89237754]
[1641202949171,11.539991,3803.3,3803.0,0.89237754]
[1641202952678,11.539991,3803.3,3802.8,0.89237754]
[1641202953877,11.31,3803.3,3802.8,0.89237754]
[1641202954377,4.00958,3803.4,3802.8,0.89237754]
[1641202955278,4.00958,3803.4,3803.0,0.89237754]
[1641202955879,11.31,3803.7,3803.0,0.89237754]
[1641202956277,1.01165613,3803.8,3803.0,0.89237754]
[1641202956478,0.88349913,3803.7,3803.0,0.89237754]
[1641202956679,2.00479,3803.6,3803.0,0.89237754]
[1641202956879,13.31479,3803.6,3803.0,0.89237754]
[1641202957179,14.15049,3803.6,3803.0,0.89237754]
[1641202958582,15.03398913,3803.6,3802.9,0.89237754]
[1641202959483,3.72398913,3803.6,3802.9,0.89237754]
[1641202959683,14.19828913,3803.6,3802.9,0.89237754]
[1641202959886,13.31479,3803.6,3802.9,0.89237754]
[1641202960086,2.00479,3803.6,3802.9,2.00062992]
[1641202960484,2.00479,3803.6,3803.0,0.67857926]
[1641202960684,0.88349913,3803.7,3803.5,2.00479]
[1641202960883,0.128157,3803.9,3803.5,2.00479]
[1641202961484,0.128157,3803.9,3803.3,0.89237754]
[1641202962684,13.31479,3803.6,3803.4,0.89237754]
[1641202962884,0.229991,3803.5,3803.4,0.89237754]
[1641202963286,0.229991,3803.5,3803.2,0.89237754]
[1641202963487,2.00479,3803.6,3803.2,0.89237754]
[1641202964386,2.00479,3803.6,3803.3,0.89237754]
[1641202964588,0.229991,3803.5,3803.3,0.89237754]
[1641202966287,0.352347,3803.5,3803.3,0.89237754]
[1641202966490,0.352347,3803.5,3803.1,0.89237754]
[1641202966788,2.00479,3803.2,3803.1,0.89237754]
[1641202966988,2.56129,3803.2,3803.1,0.89237754]
[1641202967188,2.791281,3803.2,3803.1,0.89237754]
[1641202967989,2.791281,3803.2,3802.9,0.89237754]
[1641202968491,0.128157,3803.1,3802.9,0.89237754]
[1641202968890,0.229991,3803.0,3802.9,0.89237754]
[1641202969792,0.229991,3803.0,3802.6,1.74883586]
[1641202969993,0.122356,3802.9,3802.4,2.00479]
[1641202970794,11.31,3802.7,3802.2,2.23262199]
[1641202971394,11.31,3802.7,3801.9,4.58629276]
[1641202971598,11.31,3802.7,3802.3,0.67905029]
[1641202972195,11.31,3802.7,3802.0,0.67905029]
[1641202972596,11.31,3802.7,3801.9,2.80153768]
[1641202973197,11.31,3802.7,3802.0,0.67906773]
[1641202973398,2.00479,3802.8,3802.0,0.67906773]
[1641202973597,11.31,3802.7,3802.0,0.67906773]
[1641202975902,11.31,3802.7,3802.1,1.4872959]
[1641202976602,11.31,3802.7,3802.2,2.16636363]
[1641202977102,11.31,3802.7,3802.2,1.4872959]
[1641202977304,2.00479,3802.8,3802.2,1.4872959]
[1641202978104,2.00479,3802.8,3802.3,0.67930134]
[1641202978305,2.00479,3802.8,3802.2,1.4872959]
[1641202978505,0.250513,3803.1,3802.2,1.4872959]
[1641202979106,2.00479,3802.8,3802.2,1.4872959]
[1641202979306,2.00479,3802.8,3802.3,0.67931799]
[1641202979505,13.31479,3802.8,3802.2,1.4872959]
[1641202980509,13.31479,3802.8,3802.4,1.19025078]
[1641202980908,13.31479,3802.8,3802.5,1.19025078]
[1641202981106,0.229991,3802.7,3802.5,1.19025078]
[1641202985417,13.31479,3802.8,3802.5,1.19025078]
[1641202985618,0.229991,3802.7,3802.5,1.19025078]
[1641202985817,0.229991,3802.7,3802.6,1.19025078]
[1641202987717,0.229991,3802.7,3802.3,1.4872959]
[1641202988018,11.432356,3802.6,3801.7,19.13664386]
[1641202988224,1.5,3802.4,3801.7,2.23094386]
[1641202988417,0.128157,3802.3,3801.7,2.23094386]
[1641202989022,4.00958,3801.9,3801.7,2.23094386]
[1641202989218,4.767871,3801.9,3801.7,2.23094386]
[1641202989721,4.767871,3801.9,3801.1,2.23094386]
[1641202990322,4.767871,3801.9,3801.2,0.67947558]
[1641202991223,4.53788,3801.9,3801.2,0.67947558]
[1641202991424,4.00958,3801.9,3801.2,0.67947558]
[1641202992324,4.00958,3801.9,3801.3,0.55919954]
[1641202992823,4.00958,3801.9,3801.4,0.67947558]
[1641202994126,4.00958,3801.9,3801.5,0.55919954]
[1641202994824,4.00958,3801.9,3801.1,2.7901434]
[1641202995429,4.00958,3801.9,3801.0,2.00479]
[1641202995628,4.00958,3801.9,3801.2,0.54605058]
[1641202995928,4.00958,3801.9,3801.1,0.54605058]
[1641202996227,11.31,3801.8,3801.0,2.00479]
[1641202996528,11.31,3801.8,3801.3,0.55919309]
[1641202997329,11.31,3801.8,3801.1,2.34487953]
[1641202998229,11.31,3801.8,3801.4,1.48807516]
[1641202998931,4.00958,3801.9,3801.4,1.48807516]
[1641202999130,15.31958,3801.9,3801.7,1.19046217]
[1641202999430,0.229991,3801.8,3801.7,1.19046217]
[1641203001034,11.539991,3801.8,3801.4,1.48807516]
[1641203001232,2.00479,3801.5,3801.2,1.78568644]
[1641203001833,0.229991,3801.4,3801.2,1.78568644]
[1641203002034,11.668148,3801.4,3801.2,1.78568644]
[1641203002233,0.128157,3801.4,3801.2,1.78568644]
[1641203003434,0.358148,3801.4,3801.2,1.78568644]
[1641203003939,0.128157,3801.4,3801.2,1.78568644]
[1641203006034,2.00479,3801.5,3801.2,1.78568644]
[1641203006236,0.229991,3801.4,3801.2,1.78568644]
[1641203006433,0.358148,3801.4,3801.2,1.78568644]
[1641203007035,0.128157,3801.4,3801.2,1.78568644]
[1641203007539,0.128157,3801.4,3801.0,0.55919309]
[1641203007736,0.128157,3801.4,3801.3,2.23209751]
[1641203008839,0.358148,3801.4,3801.3,0.55919309]
[1641203009439,0.128157,3801.4,3801.3,0.55919309]
[1641203009640,0.358148,3801.4,3801.3,0.55919309]
[1641203009839,0.128157,3801.4,3801.3,0.55919309]
[1641203010040,0.128157,3801.4,3801.2,2.23209751]
[1641203011142,0.88406506,3801.9,3801.2,2.23209751]
[1641203011541,2.00479,3801.5,3801.3,2.23209751]
[1641203011941,2.00479,3801.5,3801.2,1.5]
[1641203012145,2.00479,3801.5,3801.2,4.47613001]
[1641203012146,1e-08,3801.5,3801.2,4.47613001]
[1641203012948,1e-08,3801.5,3801.3,0.54555514]
[1641203013547,1e-08,3801.5,3801.4,1.5]
[1641203013748,2.00479,3801.8,3801.5,1.87260713]
[1641203013948,2.00479,3801.8,3801.4,1.43678435]
[1641203014146,2.00479,3801.8,3801.4,1.99597744]
[1641203014348,2.00479,3801.8,3801.6,1.5]
[1641203014546,2.00479,3801.8,3801.6,2.0679]
[1641203014845,2.00479,3801.8,3801.6,0.5679]
[1641203015646,2.00479,3801.8,3801.7,0.55919309]
[1641203018545,2.00479,3801.8,3801.6,2.35434974]
[1641203019550,2.00479,3801.8,3801.7,0.55919309]
[1641203021249,2.00479,3801.8,3801.7,1.10482586]
[1641203021649,2.00479,3801.8,3801.7,0.54563277]
[1641203023052,2.00479,3801.8,3801.7,2.8912756]
[1641203023251,0.21557291,3801.8,3801.7,2.8912756]
[1641203023651,2.00479,3802.2,3801.7,2.8912756]
[1641203023652,2.00479,3802.2,3801.7,1.10482586]
[1641203024051,2.00479,3802.2,3801.8,0.54563277]
[1641203024252,2.00479,3802.2,3801.9,1.48867756]
[1641203024452,0.229991,3802.1,3801.9,1.48867756]
[1641203025455,0.229991,3802.1,3801.9,0.55919309]
[1641203026457,2.132947,3802.2,3801.8,1.48867756]
[1641203027058,2.132947,3802.2,3801.7,1.48867756]
[1641203027458,2.132947,3802.2,3801.8,0.54618064]
[1641203027861,13.442947,3802.2,3801.8,0.54618064]
[1641203028261,2.132947,3802.2,3801.8,0.54618064]
[1641203028462,2.132947,3802.2,3801.8,2.0348582]
[1641203028962,2.132947,3802.2,3801.9,0.55919309]
[1641203029564,0.229991,3802.1,3801.9,0.55919309]
[1641203030163,2.132947,3802.2,3801.9,0.55919309]
[1641203030564,0.229991,3802.1,3801.9,0.55919309]
[1641203030764,0.229991,3802.1,3801.8,1.48867756]
[1641203031269,0.229991,3802.1,3801.9,0.5464048]
[1641203031865,0.229991,3802.1,3802.0,0.55919309]
[1641203033569,0.229991,3802.1,3801.8,1.48867756]
[1641203034170,0.229991,3802.1,3801.6,0.55919309]
[1641203034372,1.11405606,3802.1,3801.8,1.78644974]
[1641203035672,1.11405606,3802.1,3801.6,0.55919309]
[1641203035673,1.11405606,3802.1,3802.0,1.49108639]
[1641203036875,0.88406506,3802.1,3802.0,1.49108639]
[1641203037077,1.11405606,3802.1,3802.0,1.49108639]
[1641203037675,12.42405606,3802.1,3802.0,1.49108639]
[1641203038477,11.539991,3802.1,3802.0,1.49108639]
[1641203038877,11.99988694,3802.1,3801.8,1.49108639]
[1641203039781,0.88577143,3802.0,3801.9,1.49108639]
[1641203040584,11.539991,3802.1,3801.9,1.49108639]
[1641203040781,0.46008324,3802.0,3801.9,1.49108639]
[1641203041980,11.539991,3802.1,3801.9,1.49108639]
[1641203042182,12.42473758,3802.1,3801.7,1.49108639]
[1641203042982,12.42473758,3802.1,3802.0,1.19159093]
[1641203043581,12.42473758,3802.1,3801.9,1.19159093]
[1641203046285,0.88474658,3802.0,3801.8,1.19159093]
[1641203046483,0.229991,3801.9,3801.8,1.19159093]
[1641203055795,0.88474658,3802.0,3801.8,1.19159093]
[1641203055996,0.229991,3801.9,3801.8,1.19159093]
[1641203056397,0.88474658,3801.9,3801.8,1.19159093]
[1641203056598,0.88474658,3801.9,3801.7,1.19159093]
[1641203057099,1.11473758,3801.9,3801.7,1.19159093]
[1641203058500,0.88474658,3801.9,3801.7,1.19159093]
[1641203058899,0.88474658,3802.0,3801.8,1.19159093]
[1641203059299,0.229991,3801.9,3801.8,1.19159093]
[1641203059499,0.88474658,3802.0,3801.8,1.19159093]
[1641203060101,1.11473758,3802.0,3801.8,1.19159093]
[1641203060701,1.11473758,3802.0,3801.8,9.093e-05]
[1641203061101,0.229991,3802.0,3801.8,9.093e-05]
[1641203061305,0.229991,3802.0,3801.9,1.45294434]
[1641203061503,0.229991,3802.0,3801.6,9.093e-05]
[1641203063504,0.229991,3802.0,3801.4,2.03814659]
[1641203063904,0.229991,3802.0,3801.4,1.49108639]
[1641203064906,11.31,3802.1,3801.5,0.54694643]
[1641203065604,11.31,3802.1,3801.5,2.03803282]
[1641203066104,11.31,3802.1,3801.5,1.49108639]
[1641203066304,11.31,3802.1,3801.6,0.54704842]
[1641203067105,11.31,3802.1,3801.7,0.128157]
[1641203067306,11.31,3802.1,3801.6,0.54704842]
[1641203067905,0.128157,3802.0,3801.5,1.49108639]
[1641203068807,0.128157,3802.0,3801.3,1.49108639]
[1641203069009,11.31,3802.1,3801.3,1.49108639]
[1641203069210,11.31,3802.1,3801.4,0.128157]
[1641203069409,11.31,3802.1,3801.4,0.65436014]
[1641203069812,2.00479,3802.2,3801.4,0.65436014]
[1641203070010,11.31,3802.3,3801.4,2.15436014]
[1641203070613,11.31,3802.3,3801.5,0.52620314]
[1641203070814,11.31,3802.3,3801.7,1.49108639]
[1641203071011,11.31,3802.3,3801.7,2.04878639]
[1641203071212,11.438157,3802.3,3801.7,2.04878639]